[Event "*** Titled Tuesday Blitz"]
[Site "Chess.com"]
[Date "2020.12.01"]
[Round "7"]
[White "Sueetin"]
[Black "carloseduar100"]
[Result "0-1"]
[WhiteElo "2243"]
[BlackElo "2062"]
[TimeControl "180+1"]
[EndTime "11:16:37 PST"]
[Termination "carloseduar100 won on time"]

1. e4 {[%clk 0:03:00.9]} 1... e6 {[%clk 0:02:59.7]} 2. d4 {[%clk 0:03:00.8]}
2... d5 {[%clk 0:02:25]} 3. Nc3 {[%clk 0:02:58.1]} 3... Nf6 {[%clk 0:02:24]} 4.
e5 {[%clk 0:02:58.1]} 4... Nfd7 {[%clk 0:02:24]} 5. f4 {[%clk 0:02:58.6]} 5...
c5 {[%clk 0:02:24.1]} 6. Nf3 {[%clk 0:02:59.1]} 6... Nc6 {[%clk 0:02:24.1]} 7.
Be3 {[%clk 0:02:59.3]} 7... Qb6 {[%clk 0:02:23.2]} 8. Qd2 {[%clk 0:02:22.5]}
8... Qxb2 {[%clk 0:02:14.3]} 9. Rb1 {[%clk 0:02:21.7]} 9... Qa3 {[%clk
0:02:13.2]} 10. Bb5 {[%clk 0:02:04]} 10... a6 {[%clk 0:02:02.6]} 11. Bxc6 {[%clk
0:01:38.1]} 11... bxc6 {[%clk 0:01:57.7]} 12. O-O {[%clk 0:01:32.7]} 12... Be7
{[%clk 0:01:43.7]} 13. Kh1 {[%clk 0:00:50.3]} 13... O-O {[%clk 0:01:42.1]} 14.
Rb3 {[%clk 0:00:48.3]} 14... Qa5 {[%clk 0:01:41]} 15. Nxd5 {[%clk 0:00:48.5]}
15... Qd8 {[%clk 0:01:36]} 16. Nxe7+ {[%clk 0:00:45.2]} 16... Qxe7 {[%clk
0:01:36]} 17. dxc5 {[%clk 0:00:35.3]} 17... Nxc5 {[%clk 0:01:35.5]} 18. Qb4
{[%clk 0:00:35.3]} 18... Re8 {[%clk 0:01:14.8]} 19. Bxc5 {[%clk 0:00:29.5]}
19... Qd7 {[%clk 0:01:14.9]} 20. Rd3 {[%clk 0:00:29.1]} 20... Qc7 {[%clk
0:01:14.8]} 21. Qb6 {[%clk 0:00:24.7]} 21... Qxb6 {[%clk 0:01:12.6]} 22. Bxb6
{[%clk 0:00:25.6]} 22... Rb8 {[%clk 0:01:12.6]} 23. Rb3 {[%clk 0:00:21.9]} 23...
Bd7 {[%clk 0:01:05.6]} 24. Rd1 {[%clk 0:00:19.6]} 24... Rb7 {[%clk 0:01:05.3]}
25. c4 {[%clk 0:00:18.8]} 25... c5 {[%clk 0:01:00.8]} 26. Bxc5 {[%clk
0:00:18.4]} 26... Rc7 {[%clk 0:01:01]} 27. Bb6 {[%clk 0:00:16.8]} 27... Rb7
{[%clk 0:00:54.3]} 28. c5 {[%clk 0:00:16.7]} 28... Bc6 {[%clk 0:00:54.4]} 29.
Rd6 {[%clk 0:00:15.7]} 29... Bd5 {[%clk 0:00:53.1]} 30. Ra3 {[%clk 0:00:10.5]}
30... Bc4 {[%clk 0:00:53.1]} 31. h3 {[%clk 0:00:10.1]} 31... h6 {[%clk
0:00:52.6]} 32. Kh2 {[%clk 0:00:10.3]} 32... Kh7 {[%clk 0:00:50.1]} 33. Nd4
{[%clk 0:00:10.5]} 33... Kg6 {[%clk 0:00:49]} 34. Kg3 {[%clk 0:00:08.2]} 34...
h5 {[%clk 0:00:48.5]} 35. Kf3 {[%clk 0:00:08]} 35... h4 {[%clk 0:00:46.4]} 36.
Ke3 {[%clk 0:00:07.5]} 36... Rh8 {[%clk 0:00:37.9]} 37. Ra4 {[%clk 0:00:06.5]}
37... Bf1 {[%clk 0:00:36.5]} 38. Kf2 {[%clk 0:00:06.7]} 38... Bd3 {[%clk
0:00:33.7]} 39. Nb3 {[%clk 0:00:06.1]} 39... Bb5 {[%clk 0:00:29.2]} 40. Rad4
{[%clk 0:00:05.1]} 40... Rh5 {[%clk 0:00:27.5]} 41. Na5 {[%clk 0:00:04.9]} 41...
Rb8 {[%clk 0:00:25.2]} 42. Ba7 {[%clk 0:00:04.7]} 42... Rc8 {[%clk 0:00:23.9]}
43. c6 {[%clk 0:00:03.4]} 43... Rf5 {[%clk 0:00:21.2]} 44. Bb6 {[%clk
0:00:03.4]} 44... f6 {[%clk 0:00:17.9]} 45. exf6 {[%clk 0:00:02.1]} 45... e5
{[%clk 0:00:16.5]} 46. Rd2 {[%clk 0:00:01.4]} 46... Rxf4+ {[%clk 0:00:16.2]} 47.
Kg1 {[%clk 0:00:01.8]} 47... gxf6 {[%clk 0:00:16.6]} 48. c7 {[%clk 0:00:01.6]}
48... Rf1+ {[%clk 0:00:15.9]} 49. Kh2 {[%clk 0:00:01.3]} 49... Rc1 {[%clk
0:00:16.8]} 50. Rd8 {[%clk 0:00:00.8]} 50... R1xc7 {[%clk 0:00:17.2]} 0-1

[Event "*** Titled Tuesday Blitz"]
[Site "Chess.com"]
[Date "2020.12.01"]
[Round "7"]
[White "Agibileg"]
[Black "vwnv7"]
[Result "1-0"]
[WhiteElo "2532"]
[BlackElo "2410"]
[TimeControl "180+1"]
[EndTime "11:16:38 PST"]
[Termination "Agibileg won on time"]

1. d4 {[%clk 0:03:00.9]} 1... d5 {[%clk 0:02:59.7]} 2. c4 {[%clk 0:03:00.3]}
2... e6 {[%clk 0:02:59.9]} 3. Nc3 {[%clk 0:03:00.5]} 3... Nf6 {[%clk 0:02:59.8]}
4. cxd5 {[%clk 0:03:01.1]} 4... exd5 {[%clk 0:02:59.4]} 5. Bg5 {[%clk
0:03:01.3]} 5... Be7 {[%clk 0:02:58.7]} 6. e3 {[%clk 0:03:01.3]} 6... Nbd7
{[%clk 0:02:58.6]} 7. Qc2 {[%clk 0:03:01.4]} 7... O-O {[%clk 0:02:58]} 8. Bd3
{[%clk 0:03:02]} 8... c6 {[%clk 0:02:58.2]} 9. Nf3 {[%clk 0:03:02.5]} 9... Re8
{[%clk 0:02:58.7]} 10. O-O {[%clk 0:03:03]} 10... Nf8 {[%clk 0:02:59.2]} 11. h3
{[%clk 0:03:03.7]} 11... Be6 {[%clk 0:02:56]} 12. Ne5 {[%clk 0:03:02.7]} 12...
N6d7 {[%clk 0:02:56]} 13. Bf4 {[%clk 0:02:59.7]} 13... f6 {[%clk 0:02:37.2]} 14.
Nf3 {[%clk 0:02:54.1]} 14... Bf7 {[%clk 0:02:29.5]} 15. Rab1 {[%clk 0:02:50.7]}
15... a5 {[%clk 0:02:27.7]} 16. a3 {[%clk 0:02:38.5]} 16... Bg6 {[%clk 0:02:05]}
17. b4 {[%clk 0:02:36.1]} 17... b5 {[%clk 0:01:59.6]} 18. Bxg6 {[%clk
0:02:27.9]} 18... Nxg6 {[%clk 0:01:48.1]} 19. Bh2 {[%clk 0:02:26.4]} 19... Nb6
{[%clk 0:01:45.3]} 20. Nd2 {[%clk 0:02:12.7]} 20... axb4 {[%clk 0:01:36.9]} 21.
axb4 {[%clk 0:02:12.6]} 21... Ra3 {[%clk 0:01:37.4]} 22. Rfc1 {[%clk 0:02:02.9]}
22... Nc4 {[%clk 0:01:32.5]} 23. Nxc4 {[%clk 0:02:02.7]} 23... dxc4 {[%clk
0:01:25.2]} 24. d5 {[%clk 0:01:43.6]} 24... Bd6 {[%clk 0:01:15.3]} 25. Rd1
{[%clk 0:01:25.4]} 25... Bxh2+ {[%clk 0:01:12.9]} 26. Kxh2 {[%clk 0:01:26]}
26... Ne5 {[%clk 0:00:58.8]} 27. dxc6 {[%clk 0:01:23]} 27... Qb6 {[%clk
0:00:39.4]} 28. Rd5 {[%clk 0:00:50.6]} 28... Qxc6 {[%clk 0:00:30.1]} 29. Rc5
{[%clk 0:00:50.1]} 29... Qd6 {[%clk 0:00:27.5]} 30. f4 {[%clk 0:00:41.6]} 30...
Rxc3 {[%clk 0:00:16]} 31. Qxc3 {[%clk 0:00:31.1]} 31... Nd3 {[%clk 0:00:15]} 32.
Rxb5 {[%clk 0:00:28.7]} 32... Rxe3 {[%clk 0:00:08.2]} 33. Qxc4+ {[%clk
0:00:28.8]} 33... Kf8 {[%clk 0:00:08]} 34. Rb8+ {[%clk 0:00:24.2]} 34... Qxb8
{[%clk 0:00:07.4]} 35. Rf1 {[%clk 0:00:19.7]} 35... h5 {[%clk 0:00:05.2]} 36. b5
{[%clk 0:00:19.2]} 36... Nb2 {[%clk 0:00:03.3]} 37. Qc5+ {[%clk 0:00:18.7]}
37... Kf7 {[%clk 0:00:03.7]} 38. Qxe3 {[%clk 0:00:19.2]} 38... Qxb5 {[%clk
0:00:03.9]} 39. Rb1 {[%clk 0:00:19.7]} 39... Qb4 {[%clk 0:00:03.2]} 40. Qf2
{[%clk 0:00:16.3]} 40... h4 {[%clk 0:00:03.3]} 41. Rxb2 {[%clk 0:00:15.9]} 41...
Qe4 {[%clk 0:00:02.8]} 42. Re2 {[%clk 0:00:15.7]} 42... Qd5 {[%clk 0:00:02.3]}
43. Qxh4 {[%clk 0:00:15.4]} 43... Qc4 {[%clk 0:00:02.5]} 44. Qf2 {[%clk
0:00:14.8]} 44... Qb4 {[%clk 0:00:02]} 45. Rb2 {[%clk 0:00:14.8]} 45... Qc4
{[%clk 0:00:02.2]} 46. Rb7+ {[%clk 0:00:14.5]} 46... Kg6 {[%clk 0:00:01.9]} 47.
Qg3+ {[%clk 0:00:15.4]} 47... Kf5 {[%clk 0:00:02.1]} 48. Qg4+ {[%clk 0:00:15.4]}
48... Ke4 {[%clk 0:00:01.9]} 49. Re7+ {[%clk 0:00:15.9]} 49... Kd3 {[%clk
0:00:01.5]} 50. Qe2+ {[%clk 0:00:15]} 1-0

[Event "*** Titled Tuesday Blitz"]
[Site "Chess.com"]
[Date "2020.12.01"]
[Round "7"]
[White "chessmachine14"]
[Black "RobPeresian"]
[Result "0-1"]
[WhiteElo "2252"]
[BlackElo "2439"]
[TimeControl "180+1"]
[EndTime "11:16:39 PST"]
[Termination "RobPeresian won on time"]

1. e4 {[%clk 0:03:00.9]} 1... e5 {[%clk 0:02:59.3]} 2. Nf3 {[%clk 0:02:56.5]}
2... Nc6 {[%clk 0:02:55.7]} 3. Bb5 {[%clk 0:02:56.2]} 3... a6 {[%clk 0:02:55.8]}
4. Ba4 {[%clk 0:02:54.3]} 4... Nf6 {[%clk 0:02:55.9]} 5. O-O {[%clk 0:02:53.8]}
5... Be7 {[%clk 0:02:53.7]} 6. Re1 {[%clk 0:02:49.8]} 6... b5 {[%clk 0:02:52.7]}
7. Bb3 {[%clk 0:02:49.1]} 7... d6 {[%clk 0:02:50.7]} 8. c3 {[%clk 0:02:48.9]}
8... O-O {[%clk 0:02:48.4]} 9. d4 {[%clk 0:02:49]} 9... Bg4 {[%clk 0:02:47.9]}
10. Be3 {[%clk 0:02:46.7]} 10... Re8 {[%clk 0:02:44.9]} 11. h3 {[%clk
0:02:38.6]} 11... Bh5 {[%clk 0:02:44.3]} 12. Nbd2 {[%clk 0:02:33.9]} 12... Bf8
{[%clk 0:02:43.7]} 13. Bc2 {[%clk 0:02:05.7]} 13... h6 {[%clk 0:02:31.9]} 14. d5
{[%clk 0:01:47.6]} 14... Nb8 {[%clk 0:02:28]} 15. Nf1 {[%clk 0:01:46.8]} 15...
c6 {[%clk 0:02:23.5]} 16. Ng3 {[%clk 0:01:23.1]} 16... Bxf3 {[%clk 0:02:17.5]}
17. Qxf3 {[%clk 0:01:20.4]} 17... cxd5 {[%clk 0:02:17.7]} 18. exd5 {[%clk
0:01:19.3]} 18... g6 {[%clk 0:02:18.1]} 19. Rad1 {[%clk 0:01:11]} 19... Nbd7
{[%clk 0:02:17.2]} 20. h4 {[%clk 0:01:02.4]} 20... h5 {[%clk 0:02:16.2]} 21. Bg5
{[%clk 0:01:00.7]} 21... Be7 {[%clk 0:02:13.6]} 22. Kh2 {[%clk 0:00:33.3]} 22...
Ng4+ {[%clk 0:02:12.8]} 23. Kg1 {[%clk 0:00:26.5]} 23... Bxg5 {[%clk 0:02:12.7]}
24. hxg5 {[%clk 0:00:26.7]} 24... Qxg5 {[%clk 0:02:13.2]} 25. Ne4 {[%clk
0:00:27]} 25... Qe7 {[%clk 0:02:07.2]} 26. Qg3 {[%clk 0:00:27.3]} 26... f5
{[%clk 0:02:04.8]} 27. Nd2 {[%clk 0:00:19.9]} 27... Qf6 {[%clk 0:01:51.2]} 28.
f3 {[%clk 0:00:19.8]} 28... Nh6 {[%clk 0:01:49.1]} 29. Nf1 {[%clk 0:00:18.1]}
29... Nf7 {[%clk 0:01:48.2]} 30. Qf2 {[%clk 0:00:17.3]} 30... h4 {[%clk
0:01:45.4]} 31. f4 {[%clk 0:00:13.8]} 31... exf4 {[%clk 0:01:44.1]} 32. Qxf4
{[%clk 0:00:13.4]} 32... Nde5 {[%clk 0:01:42.9]} 33. Ne3 {[%clk 0:00:12.2]}
33... Kg7 {[%clk 0:01:40.1]} 34. Qf2 {[%clk 0:00:11.8]} 34... Rh8 {[%clk
0:01:37.6]} 35. Rf1 {[%clk 0:00:12]} 35... Ng5 {[%clk 0:01:30]} 36. Bxf5 {[%clk
0:00:11]} 36... gxf5 {[%clk 0:01:29.3]} 37. Nxf5+ {[%clk 0:00:11.3]} 37... Kg8
{[%clk 0:01:23.9]} 38. Rd4 {[%clk 0:00:09.6]} 38... Rf8 {[%clk 0:01:22.2]} 39.
Qe2 {[%clk 0:00:07.6]} 39... h3 {[%clk 0:01:16]} 40. gxh3 {[%clk 0:00:05]} 40...
Nxh3+ {[%clk 0:01:13.4]} 41. Kg2 {[%clk 0:00:05.2]} 41... Qg5+ {[%clk
0:01:11.2]} 42. Ng3 {[%clk 0:00:03.5]} 42... Nf4+ {[%clk 0:00:51.5]} 43. Rdxf4
{[%clk 0:00:03.5]} 43... Rxf4 {[%clk 0:00:07.7]} 44. Qe3 {[%clk 0:00:03.9]}
44... Rh2+ {[%clk 0:00:05.9]} 45. Kg1 {[%clk 0:00:01]} 45... Rxf1+ {[%clk
0:00:03.8]} 0-1

[Event "*** Titled Tuesday Blitz"]
[Site "Chess.com"]
[Date "2020.12.01"]
[Round "7"]
[White "ChessQueen"]
[Black "ikhasu"]
[Result "1-0"]
[WhiteElo "2714"]
[BlackElo "2427"]
[TimeControl "180+1"]
[EndTime "11:16:41 PST"]
[Termination "ChessQueen won on time"]

1. e4 {[%clk 0:03:00.9]} 1... c5 {[%clk 0:02:58.7]} 2. c3 {[%clk 0:03:00.8]}
2... Nf6 {[%clk 0:02:57.8]} 3. e5 {[%clk 0:03:01.1]} 3... Nd5 {[%clk 0:02:57.6]}
4. Nf3 {[%clk 0:03:00.5]} 4... Nc6 {[%clk 0:02:56.8]} 5. Bc4 {[%clk 0:03:00.8]}
5... Nb6 {[%clk 0:02:56.2]} 6. Bb3 {[%clk 0:03:01.4]} 6... d5 {[%clk 0:02:56]}
7. exd6 {[%clk 0:03:01.3]} 7... Qxd6 {[%clk 0:02:55.8]} 8. O-O {[%clk
0:03:00.6]} 8... c4 {[%clk 0:02:55.6]} 9. Bc2 {[%clk 0:03:00.3]} 9... Bg4 {[%clk
0:02:56.1]} 10. a4 {[%clk 0:03:00.4]} 10... Ne5 {[%clk 0:02:40]} 11. Be4 {[%clk
0:02:58.9]} 11... f5 {[%clk 0:02:37.1]} 12. Bxb7 {[%clk 0:02:49.1]} 12... Rb8
{[%clk 0:02:36.6]} 13. Nxe5 {[%clk 0:02:49.4]} 13... Bxd1 {[%clk 0:01:40]} 14.
Bc6+ {[%clk 0:02:48.7]} 14... Kd8 {[%clk 0:01:40.5]} 15. Nf7+ {[%clk 0:02:49]}
15... Kc7 {[%clk 0:01:40.4]} 16. Nxd6 {[%clk 0:02:49.7]} 16... exd6 {[%clk
0:01:27.7]} 17. Rxd1 {[%clk 0:02:45.1]} 17... Kxc6 {[%clk 0:01:27.8]} 18. d3
{[%clk 0:02:40.7]} 18... d5 {[%clk 0:01:20.7]} 19. a5 {[%clk 0:02:38.5]} 19...
Nd7 {[%clk 0:01:20.6]} 20. dxc4 {[%clk 0:02:38.8]} 20... dxc4 {[%clk 0:01:20.1]}
21. Nd2 {[%clk 0:02:37.2]} 21... Ne5 {[%clk 0:01:10.9]} 22. Nf1 {[%clk
0:02:17.1]} 22... Bc5 {[%clk 0:00:49.4]} 23. Ne3 {[%clk 0:01:51.6]} 23... Bxe3
{[%clk 0:00:45.6]} 24. Bxe3 {[%clk 0:01:51.2]} 24... Rxb2 {[%clk 0:00:44.5]} 25.
Bxa7 {[%clk 0:01:50.8]} 25... Ra8 {[%clk 0:00:42.7]} 26. Bd4 {[%clk 0:01:50]}
26... Nd3 {[%clk 0:00:42.5]} 27. a6 {[%clk 0:01:41.8]} 27... g6 {[%clk
0:00:34.4]} 28. a7 {[%clk 0:01:42.1]} 28... Rb7 {[%clk 0:00:27.6]} 29. Ra6+
{[%clk 0:01:21.6]} 29... Kb5 {[%clk 0:00:25.3]} 30. Re6 {[%clk 0:01:16.7]} 30...
Ka4 {[%clk 0:00:20.4]} 31. h4 {[%clk 0:01:06.7]} 31... Kb3 {[%clk 0:00:18.1]}
32. Rb1+ {[%clk 0:01:01.3]} 32... Nb2 {[%clk 0:00:18]} 33. Re2 {[%clk
0:00:59.2]} 33... Ka2 {[%clk 0:00:18.1]} 34. Rbe1 {[%clk 0:00:53.4]} 34... Raxa7
{[%clk 0:00:11.9]} 35. Bxa7 {[%clk 0:00:52.7]} 35... Rxa7 {[%clk 0:00:12.2]} 36.
Re7 {[%clk 0:00:51.8]} 36... Ra6 {[%clk 0:00:12.2]} 37. Rb7 {[%clk 0:00:48.4]}
37... Nd3 {[%clk 0:00:10]} 38. Ree7 {[%clk 0:00:45.7]} 38... Ra3 {[%clk
0:00:08.1]} 39. Ra7 {[%clk 0:00:32.3]} 39... Rxa7 {[%clk 0:00:07.8]} 40. Rxa7+
{[%clk 0:00:32.2]} 40... Kb3 {[%clk 0:00:08.3]} 41. Rxh7 {[%clk 0:00:32.8]}
41... Kxc3 {[%clk 0:00:08.7]} 42. Rg7 {[%clk 0:00:31.5]} 42... Ne5 {[%clk
0:00:08.2]} 43. f4 {[%clk 0:00:22.9]} 43... Nd3 {[%clk 0:00:07.7]} 44. Rxg6
{[%clk 0:00:22.1]} 44... Kd4 {[%clk 0:00:08]} 45. h5 {[%clk 0:00:20.2]} 45... c3
{[%clk 0:00:08.3]} 46. Rc6 {[%clk 0:00:13.9]} 46... Nc5 {[%clk 0:00:08.1]} 47.
Rd6+ {[%clk 0:00:13.5]} 47... Ke4 {[%clk 0:00:05.9]} 48. Rd1 {[%clk 0:00:11.9]}
48... Kxf4 {[%clk 0:00:01.8]} 49. h6 {[%clk 0:00:11.6]} 1-0

[Event "*** Titled Tuesday Blitz"]
[Site "Chess.com"]
[Date "2020.12.01"]
[Round "7"]
[White "ARMQUEEN"]
[Black "Forantes"]
[Result "0-1"]
[WhiteElo "2478"]
[BlackElo "2398"]
[TimeControl "180+1"]
[EndTime "11:16:41 PST"]
[Termination "Forantes won by checkmate"]

1. e4 {[%clk 0:03:00.9]} 1... c5 {[%clk 0:02:58.9]} 2. Nc3 {[%clk 0:02:59.8]}
2... Nc6 {[%clk 0:02:58.7]} 3. Bb5 {[%clk 0:02:59]} 3... Nd4 {[%clk 0:02:58.2]}
4. Bc4 {[%clk 0:02:58.4]} 4... e6 {[%clk 0:02:58.1]} 5. Nge2 {[%clk 0:02:55.8]}
5... a6 {[%clk 0:02:57]} 6. Nxd4 {[%clk 0:02:54]} 6... cxd4 {[%clk 0:02:56.9]}
7. Ne2 {[%clk 0:02:54.2]} 7... Bc5 {[%clk 0:02:56.3]} 8. d3 {[%clk 0:02:53.6]}
8... Ne7 {[%clk 0:02:52]} 9. Bb3 {[%clk 0:02:52.2]} 9... b5 {[%clk 0:02:48.4]}
10. O-O {[%clk 0:02:51.1]} 10... Bb7 {[%clk 0:02:48.7]} 11. Ng3 {[%clk
0:02:47.6]} 11... O-O {[%clk 0:02:47.8]} 12. f4 {[%clk 0:02:45.2]} 12... f5
{[%clk 0:02:47.6]} 13. Qe2 {[%clk 0:02:39.6]} 13... Qc7 {[%clk 0:02:31]} 14. Bd2
{[%clk 0:02:38.6]} 14... Qc6 {[%clk 0:02:25.7]} 15. Rae1 {[%clk 0:02:29.3]}
15... a5 {[%clk 0:01:59.4]} 16. a3 {[%clk 0:02:27.8]} 16... a4 {[%clk 0:01:44]}
17. Ba2 {[%clk 0:02:27.8]} 17... Bb6 {[%clk 0:01:29.9]} 18. Bb4 {[%clk
0:02:25.8]} 18... Bc5 {[%clk 0:01:29.4]} 19. Bd2 {[%clk 0:02:24]} 19... Rac8
{[%clk 0:01:27.4]} 20. Kh1 {[%clk 0:02:21.6]} 20... g6 {[%clk 0:01:13.7]} 21.
Rc1 {[%clk 0:02:18.6]} 21... Qb6 {[%clk 0:01:06.3]} 22. Rfe1 {[%clk 0:01:52.9]}
22... b4 {[%clk 0:00:53.4]} 23. axb4 {[%clk 0:01:50.8]} 23... Bxb4 {[%clk
0:00:52.9]} 24. Bc4 {[%clk 0:01:35.4]} 24... Bxd2 {[%clk 0:00:49.9]} 25. Qxd2
{[%clk 0:01:36.3]} 25... Kg7 {[%clk 0:00:49.5]} 26. Ra1 {[%clk 0:01:34.8]} 26...
fxe4 {[%clk 0:00:38.9]} 27. Rxa4 {[%clk 0:00:38.6]} 27... e3 {[%clk 0:00:38.5]}
28. Qe2 {[%clk 0:00:32.7]} 28... Rxf4 {[%clk 0:00:34.8]} 29. Bb3 {[%clk
0:00:30.4]} 29... Rf2 {[%clk 0:00:34]} 30. Qg4 {[%clk 0:00:30.3]} 30... Rxg2
{[%clk 0:00:27.5]} 31. Nh5+ {[%clk 0:00:15.5]} 31... Kh8 {[%clk 0:00:18.1]} 32.
Qxg2 {[%clk 0:00:15.6]} 32... Bxg2+ {[%clk 0:00:18.2]} 33. Kxg2 {[%clk
0:00:16.5]} 33... gxh5 {[%clk 0:00:14.6]} 34. Rf1 {[%clk 0:00:16.7]} 34... Nf5
{[%clk 0:00:14.9]} 35. Rfa1 {[%clk 0:00:10.7]} 35... e2 {[%clk 0:00:14.7]} 36.
Kf2 {[%clk 0:00:09.3]} 36... Qc6 {[%clk 0:00:13.4]} 37. Rc4 {[%clk 0:00:06.9]}
37... Qb7 {[%clk 0:00:10.1]} 38. Rxc8+ {[%clk 0:00:05.8]} 38... Qxc8 {[%clk
0:00:11]} 39. Kxe2 {[%clk 0:00:06.7]} 39... Qg8 {[%clk 0:00:10.8]} 40. Kf2
{[%clk 0:00:05.4]} 40... Qg5 {[%clk 0:00:10.7]} 41. Re1 {[%clk 0:00:05.4]} 41...
Qh4+ {[%clk 0:00:10]} 42. Kg2 {[%clk 0:00:05.8]} 42... Ne3+ {[%clk 0:00:09.7]}
43. Kf3 {[%clk 0:00:05.1]} 43... Qg4+ {[%clk 0:00:07.1]} 44. Kf2 {[%clk
0:00:04.9]} 44... Qg2# {[%clk 0:00:07.9]} 0-1

[Event "*** Titled Tuesday Blitz"]
[Site "Chess.com"]
[Date "2020.12.01"]
[Round "7"]
[White "The_Machine04"]
[Black "theredking89"]
[Result "1-0"]
[WhiteElo "2439"]
[BlackElo "2625"]
[TimeControl "180+1"]
[EndTime "11:16:42 PST"]
[Termination "The_Machine04 won by resignation"]

1. d4 {[%clk 0:03:00.9]} 1... Nf6 {[%clk 0:02:58.9]} 2. Bg5 {[%clk 0:03:00.1]}
2... g6 {[%clk 0:02:57.5]} 3. Bxf6 {[%clk 0:02:59.8]} 3... exf6 {[%clk
0:02:58.4]} 4. g3 {[%clk 0:03:00.7]} 4... f5 {[%clk 0:02:58.9]} 5. e3 {[%clk
0:03:00.5]} 5... d6 {[%clk 0:02:59.2]} 6. Bg2 {[%clk 0:03:00.9]} 6... Nd7 {[%clk
0:02:59]} 7. Ne2 {[%clk 0:03:01.2]} 7... h5 {[%clk 0:02:58.7]} 8. h4 {[%clk
0:03:01]} 8... Nf6 {[%clk 0:02:58.2]} 9. c4 {[%clk 0:03:01.3]} 9... Bh6 {[%clk
0:02:56.4]} 10. Nbc3 {[%clk 0:03:00.8]} 10... Ng4 {[%clk 0:02:55.5]} 11. Qd3
{[%clk 0:03:00.3]} 11... c6 {[%clk 0:02:55]} 12. b4 {[%clk 0:02:56.6]} 12... Qe7
{[%clk 0:02:50.3]} 13. b5 {[%clk 0:02:46.1]} 13... Bd7 {[%clk 0:02:50.1]} 14. a4
{[%clk 0:02:45]} 14... O-O {[%clk 0:02:48.9]} 15. O-O {[%clk 0:02:44.6]} 15...
g5 {[%clk 0:02:45]} 16. hxg5 {[%clk 0:02:36.3]} 16... Qxg5 {[%clk 0:02:45.9]}
17. Bf3 {[%clk 0:02:18.2]} 17... h4 {[%clk 0:02:42.1]} 18. Kg2 {[%clk
0:02:18.1]} 18... hxg3 {[%clk 0:02:41.4]} 19. Nxg3 {[%clk 0:02:18.4]} 19... Rae8
{[%clk 0:02:16.3]} 20. Rae1 {[%clk 0:01:59.1]} 20... Nxf2 {[%clk 0:01:19.5]} 21.
Kxf2 {[%clk 0:01:42.9]} 21... Rxe3 {[%clk 0:01:12.7]} 22. Rxe3 {[%clk
0:00:47.4]} 22... f4 {[%clk 0:01:10]} 23. Ree1 {[%clk 0:00:40.9]} 23... Qxg3+
{[%clk 0:00:49]} 24. Ke2 {[%clk 0:00:40.1]} 24... Re8+ {[%clk 0:00:45.9]} 25.
Kd1 {[%clk 0:00:38]} 25... Rxe1+ {[%clk 0:00:39.5]} 26. Rxe1 {[%clk 0:00:38.9]}
26... Bg4 {[%clk 0:00:38.8]} 27. Rf1 {[%clk 0:00:35.7]} 27... Qh3 {[%clk
0:00:32.5]} 28. Kc2 {[%clk 0:00:29.2]} 28... Bf5 {[%clk 0:00:17.1]} 29. Be4
{[%clk 0:00:22.7]} 29... Qh2+ {[%clk 0:00:16.7]} 30. Qe2 {[%clk 0:00:12.9]}
30... Bxe4+ {[%clk 0:00:15.5]} 31. Kb3 {[%clk 0:00:10.4]} 31... Qxe2 {[%clk
0:00:15.2]} 32. Nxe2 {[%clk 0:00:10.7]} 32... Bd3 {[%clk 0:00:14.7]} 33. Rg1+
{[%clk 0:00:08.4]} 33... Kf8 {[%clk 0:00:15]} 34. Nc1 {[%clk 0:00:08.1]} 34...
Be4 {[%clk 0:00:14.9]} 35. Kc3 {[%clk 0:00:05.9]} 35... f3 {[%clk 0:00:15.2]}
36. Nd3 {[%clk 0:00:06.2]} 36... f5 {[%clk 0:00:12.3]} 37. Rf1 {[%clk
0:00:05.4]} 37... d5 {[%clk 0:00:12.7]} 38. cxd5 {[%clk 0:00:04.2]} 38... Bxd5
{[%clk 0:00:12]} 39. bxc6 {[%clk 0:00:03.9]} 39... Bxc6 {[%clk 0:00:11.3]} 40.
a5 {[%clk 0:00:03.4]} 40... Be3 {[%clk 0:00:11.3]} 41. Ne5 {[%clk 0:00:03.5]}
41... f2 {[%clk 0:00:07.6]} 42. Nxc6 {[%clk 0:00:03.7]} 42... bxc6 {[%clk
0:00:08.5]} 43. Kd3 {[%clk 0:00:04.4]} 43... Ke7 {[%clk 0:00:08.6]} 44. Kxe3
{[%clk 0:00:04.4]} 44... Kd6 {[%clk 0:00:08.2]} 45. Rxf2 {[%clk 0:00:05.3]}
45... Ke6 {[%clk 0:00:07.7]} 46. Kd3 {[%clk 0:00:06.2]} 46... Kd5 {[%clk
0:00:07.8]} 47. Rxf5+ {[%clk 0:00:06.4]} 47... Kd6 {[%clk 0:00:06.1]} 48. Rc5
{[%clk 0:00:06]} 1-0